[Event "*** SCC Grand Prix: Titled Tuesday Blitz"]
[Site "Chess.com"]
[Date "2020.09.08"]
[Round "7"]
[White "TrickyFortem"]
[Black "champ1000"]
[Result "1-0"]
[WhiteElo "2447"]
[BlackElo "2289"]
[TimeControl "180+1"]
[EndTime "11:17:15 PDT"]
[Termination "TrickyFortem won by resignation"]

1. d4 {[%clk 0:03:00.9]} 1... Nf6 {[%clk 0:02:55]} 2. c4 {[%clk 0:03:01.3]} 2...
e6 {[%clk 0:02:55.2]} 3. Nc3 {[%clk 0:03:01.8]} 3... Bb4 {[%clk 0:02:53.9]} 4.
Qc2 {[%clk 0:03:02.3]} 4... O-O {[%clk 0:02:52.2]} 5. Nf3 {[%clk 0:03:00.2]}
5... c5 {[%clk 0:02:50.9]} 6. e3 {[%clk 0:02:59.7]} 6... d5 {[%clk 0:02:33.5]}
7. cxd5 {[%clk 0:02:58.8]} 7... cxd4 {[%clk 0:02:32.4]} 8. Nxd4 {[%clk
0:02:58.4]} 8... Nxd5 {[%clk 0:02:28.8]} 9. Bd2 {[%clk 0:02:58.6]} 9... b6
{[%clk 0:02:25.4]} 10. Bd3 {[%clk 0:02:56.2]} 10... h6 {[%clk 0:02:17.2]} 11.
O-O {[%clk 0:02:32]} 11... Bb7 {[%clk 0:02:13.3]} 12. Nxd5 {[%clk 0:02:24.4]}
12... Bxd2 {[%clk 0:02:13]} 13. Nc7 {[%clk 0:02:24.5]} 13... Bb4 {[%clk
0:01:16.8]} 14. Nxa8 {[%clk 0:02:22.8]} 14... Bxa8 {[%clk 0:01:17.7]} 15. Be4
{[%clk 0:02:21.5]} 15... Nd7 {[%clk 0:01:13]} 16. Rfd1 {[%clk 0:02:20.1]} 16...
Bc5 {[%clk 0:01:01.2]} 17. Bxa8 {[%clk 0:02:05]} 17... Qxa8 {[%clk 0:01:02.1]}
18. Nxe6 {[%clk 0:02:01.8]} 18... fxe6 {[%clk 0:00:54.1]} 19. Rxd7 {[%clk
0:02:01.3]} 19... Qe8 {[%clk 0:00:48]} 20. Rad1 {[%clk 0:02:00.5]} 20... Qh5
{[%clk 0:00:21.8]} 21. Qe4 {[%clk 0:01:57.8]} 21... Kh8 {[%clk 0:00:16.6]} 22.
b4 {[%clk 0:01:52.4]} 22... Be7 {[%clk 0:00:14.1]} 23. Qxe6 {[%clk 0:01:45.3]}
23... Bh4 {[%clk 0:00:12.1]} 24. g3 {[%clk 0:01:38.3]} 24... Qf3 {[%clk
0:00:12.4]} 25. R7d2 {[%clk 0:01:36.4]} 25... Bg5 {[%clk 0:00:11.4]} 26. Qd5
{[%clk 0:01:33.2]} 26... Qf6 {[%clk 0:00:10.8]} 27. Kg2 {[%clk 0:01:30.4]} 27...
h5 {[%clk 0:00:05.2]} 28. h4 {[%clk 0:01:26.4]} 28... Bh6 {[%clk 0:00:05.6]} 29.
Qxh5 {[%clk 0:01:23.2]} 1-0

[Event "*** SCC Grand Prix: Titled Tuesday Blitz"]
[Site "Chess.com"]
[Date "2020.09.08"]
[Round "7"]
[White "enriquebutti"]
[Black "chigorin28"]
[Result "1-0"]
[WhiteElo "1857"]
[BlackElo "2423"]
[TimeControl "180+1"]
[EndTime "11:17:17 PDT"]
[Termination "enriquebutti won by resignation"]

1. d4 {[%clk 0:02:59.5]} 1... Nf6 {[%clk 0:02:59.2]} 2. Nf3 {[%clk 0:02:58.7]}
2... e6 {[%clk 0:02:57.4]} 3. e3 {[%clk 0:02:58.4]} 3... b6 {[%clk 0:02:54.5]}
4. Bd3 {[%clk 0:02:57.9]} 4... Bb7 {[%clk 0:02:53.9]} 5. O-O {[%clk 0:02:57.3]}
5... Be7 {[%clk 0:02:51.2]} 6. b3 {[%clk 0:02:56.9]} 6... O-O {[%clk 0:02:51.3]}
7. Bb2 {[%clk 0:02:56.6]} 7... d5 {[%clk 0:02:51.2]} 8. c4 {[%clk 0:02:56.1]}
8... c5 {[%clk 0:02:39.5]} 9. Nbd2 {[%clk 0:02:52]} 9... cxd4 {[%clk 0:02:37.8]}
10. exd4 {[%clk 0:02:51.7]} 10... Nc6 {[%clk 0:02:37.3]} 11. a3 {[%clk
0:02:50.5]} 11... Rc8 {[%clk 0:02:37]} 12. Re1 {[%clk 0:02:46]} 12... Bd6 {[%clk
0:02:23.9]} 13. Nf1 {[%clk 0:02:35.1]} 13... dxc4 {[%clk 0:02:22.7]} 14. bxc4
{[%clk 0:02:34.6]} 14... Na5 {[%clk 0:02:21.5]} 15. Ne3 {[%clk 0:02:27.3]} 15...
Bf4 {[%clk 0:02:18.4]} 16. Ne5 {[%clk 0:02:19.1]} 16... Bxe5 {[%clk 0:02:15.4]}
17. dxe5 {[%clk 0:02:18.7]} 17... Ne4 {[%clk 0:02:04.9]} 18. Qc2 {[%clk
0:02:10.7]} 18... f5 {[%clk 0:01:49.1]} 19. exf6 {[%clk 0:02:10.3]} 19... Nxf6
{[%clk 0:01:49.4]} 20. Rad1 {[%clk 0:02:09.1]} 20... Qe7 {[%clk 0:01:44]} 21.
Nf5 {[%clk 0:02:00.4]} 21... Qc7 {[%clk 0:01:24.7]} 22. Be5 {[%clk 0:01:52]}
22... Qc6 {[%clk 0:01:13.6]} 23. Ne7+ {[%clk 0:01:51.2]} 23... Kh8 {[%clk
0:01:13.9]} 24. Nxc6 {[%clk 0:01:50.7]} 24... Bxc6 {[%clk 0:01:12.3]} 25. Bxf6
{[%clk 0:01:49.7]} 25... Rxf6 {[%clk 0:01:13]} 26. Bxh7 {[%clk 0:01:45.8]} 26...
Rcf8 {[%clk 0:01:12.2]} 27. f3 {[%clk 0:01:44.5]} 27... Rf4 {[%clk 0:00:56.4]}
28. Be4 {[%clk 0:01:41.5]} 28... R4f6 {[%clk 0:00:39.1]} 29. Rd6 {[%clk
0:01:38.2]} 29... Bxe4 {[%clk 0:00:38.6]} 30. Qxe4 {[%clk 0:01:36]} 30... Rf4
{[%clk 0:00:35.5]} 31. Qxe6 {[%clk 0:01:28.9]} 31... Nxc4 {[%clk 0:00:35.2]} 32.
Rd7 {[%clk 0:01:22.3]} 32... b5 {[%clk 0:00:29.8]} 33. Qg6 {[%clk 0:01:21]} 1-0

[Event "*** SCC Grand Prix: Titled Tuesday Blitz"]
[Site "Chess.com"]
[Date "2020.09.08"]
[Round "7"]
[White "Kaslask"]
[Black "Bulatova_Kamaliya"]
[Result "1-0"]
[WhiteElo "2293"]
[BlackElo "2147"]
[TimeControl "180+1"]
[EndTime "11:17:18 PDT"]
[Termination "Kaslask won by resignation"]

1. d4 {[%clk 0:03:00.9]} 1... b6 {[%clk 0:02:58.7]} 2. Nf3 {[%clk 0:02:58.4]}
2... Bb7 {[%clk 0:02:58.9]} 3. g3 {[%clk 0:02:58.5]} 3... g6 {[%clk 0:02:58.2]}
4. Bg2 {[%clk 0:02:57.9]} 4... Bg7 {[%clk 0:02:59.1]} 5. O-O {[%clk 0:02:54.8]}
5... d6 {[%clk 0:02:59.5]} 6. c3 {[%clk 0:02:53.3]} 6... Nd7 {[%clk 0:02:59.3]}
7. Nbd2 {[%clk 0:02:52.4]} 7... e6 {[%clk 0:02:57.6]} 8. a4 {[%clk 0:02:51.7]}
8... a6 {[%clk 0:02:56.1]} 9. e4 {[%clk 0:02:51.2]} 9... Ne7 {[%clk 0:02:56.2]}
10. Re1 {[%clk 0:02:50.3]} 10... O-O {[%clk 0:02:55.5]} 11. Nc4 {[%clk
0:02:47.1]} 11... h6 {[%clk 0:02:53.7]} 12. h4 {[%clk 0:02:44]} 12... Nf6 {[%clk
0:02:37.6]} 13. e5 {[%clk 0:02:40.1]} 13... Nfd5 {[%clk 0:02:20.8]} 14. exd6
{[%clk 0:02:34.6]} 14... cxd6 {[%clk 0:02:20.7]} 15. Nfd2 {[%clk 0:02:30.5]}
15... Rc8 {[%clk 0:02:11.7]} 16. a5 {[%clk 0:02:28.3]} 16... b5 {[%clk
0:02:08.2]} 17. Nb6 {[%clk 0:02:27.7]} 17... Rc7 {[%clk 0:02:01.5]} 18. Ne4
{[%clk 0:02:25.2]} 18... Nxb6 {[%clk 0:01:58.9]} 19. axb6 {[%clk 0:02:24]} 19...
Rc8 {[%clk 0:01:54.5]} 20. Nf6+ {[%clk 0:02:20.5]} 20... Bxf6 {[%clk 0:01:49.2]}
21. Bxb7 {[%clk 0:02:20.7]} 21... Rb8 {[%clk 0:01:49.4]} 22. Bg2 {[%clk
0:02:12.8]} 22... Qxb6 {[%clk 0:01:45.1]} 23. Bxh6 {[%clk 0:02:11.8]} 23... Rfc8
{[%clk 0:01:42.7]} 24. Be3 {[%clk 0:02:10.7]} 24... Nd5 {[%clk 0:01:42.2]} 25.
Bxd5 {[%clk 0:02:01]} 25... exd5 {[%clk 0:01:41]} 26. Qf3 {[%clk 0:02:00.1]}
26... Bg7 {[%clk 0:01:39.2]} 27. Qxd5 {[%clk 0:01:58.5]} 27... a5 {[%clk
0:01:31.4]} 28. Bf4 {[%clk 0:01:57]} 28... Rd8 {[%clk 0:01:30.5]} 29. Re7 {[%clk
0:01:54.2]} 29... Rf8 {[%clk 0:01:20.6]} 30. Qxd6 {[%clk 0:01:53.8]} 30... Qxd6
{[%clk 0:00:56.5]} 31. Bxd6 {[%clk 0:01:51.7]} 31... Ra8 {[%clk 0:00:56.4]} 32.
Be5 {[%clk 0:01:41.4]} 32... Bh6 {[%clk 0:00:52.6]} 33. Bc7 {[%clk 0:01:35.2]}
33... a4 {[%clk 0:00:45.1]} 34. d5 {[%clk 0:01:34.6]} 34... Rfe8 {[%clk
0:00:33.4]} 35. Rxe8+ {[%clk 0:01:30.7]} 35... Rxe8 {[%clk 0:00:33.7]} 36. d6
{[%clk 0:01:30.9]} 36... Re2 {[%clk 0:00:18.6]} 37. d7 {[%clk 0:01:29.4]} 37...
Rd2 {[%clk 0:00:19.2]} 38. d8=Q+ {[%clk 0:01:28.8]} 1-0

[Event "*** SCC Grand Prix: Titled Tuesday Blitz"]
[Site "Chess.com"]
[Date "2020.09.08"]
[Round "7"]
[White "Nils_03"]
[Black "MYMChessAcademy"]
[Result "1-0"]
[WhiteElo "2267"]
[BlackElo "2066"]
[TimeControl "180+1"]
[EndTime "11:17:25 PDT"]
[Termination "Nils_03 won by checkmate"]

1. d4 {[%clk 0:03:00.9]} 1... Nf6 {[%clk 0:02:56]} 2. Bg5 {[%clk 0:03:00.3]}
2... g6 {[%clk 0:02:45.3]} 3. Bxf6 {[%clk 0:02:59]} 3... exf6 {[%clk 0:02:45.6]}
4. g3 {[%clk 0:02:59]} 4... Bg7 {[%clk 0:02:45.9]} 5. Bg2 {[%clk 0:02:59.3]}
5... O-O {[%clk 0:02:46.4]} 6. Nf3 {[%clk 0:02:59.6]} 6... d5 {[%clk 0:02:47]}
7. O-O {[%clk 0:02:58.7]} 7... c6 {[%clk 0:02:47.4]} 8. Nbd2 {[%clk 0:02:57.3]}
8... Nd7 {[%clk 0:02:47.8]} 9. c4 {[%clk 0:02:57]} 9... Nb6 {[%clk 0:02:47.9]}
10. Rc1 {[%clk 0:02:52.8]} 10... Be6 {[%clk 0:02:47.5]} 11. b3 {[%clk
0:02:47.9]} 11... dxc4 {[%clk 0:02:46.4]} 12. Nxc4 {[%clk 0:02:47.4]} 12... f5
{[%clk 0:02:47]} 13. e3 {[%clk 0:02:45.7]} 13... Nd5 {[%clk 0:02:44.8]} 14. Nfe5
{[%clk 0:02:34.8]} 14... Rc8 {[%clk 0:02:36.6]} 15. Qe2 {[%clk 0:02:30.2]} 15...
b5 {[%clk 0:02:36.3]} 16. Nd2 {[%clk 0:02:24.2]} 16... Bxe5 {[%clk 0:02:33.2]}
17. dxe5 {[%clk 0:02:25.1]} 17... Qd7 {[%clk 0:02:30.8]} 18. e4 {[%clk
0:02:19.2]} 18... fxe4 {[%clk 0:02:29.8]} 19. Nxe4 {[%clk 0:02:20.1]} 19... Qe7
{[%clk 0:02:27]} 20. Rfe1 {[%clk 0:02:09.6]} 20... Bf5 {[%clk 0:02:22.9]} 21.
Nd6 {[%clk 0:02:01.4]} 21... Rcd8 {[%clk 0:02:22.9]} 22. Nxf5 {[%clk 0:02:00.9]}
22... gxf5 {[%clk 0:02:23.8]} 23. Rxc6 {[%clk 0:02:00.1]} 23... Nb4 {[%clk
0:02:20.1]} 24. Rc3 {[%clk 0:01:38.3]} 24... Nd5 {[%clk 0:02:17.1]} 25. Rf3
{[%clk 0:01:31.2]} 25... b4 {[%clk 0:02:15]} 26. Rxf5 {[%clk 0:01:29.8]} 26...
Nc3 {[%clk 0:02:15]} 27. Qg4+ {[%clk 0:01:29.8]} 27... Kh8 {[%clk 0:02:15.1]}
28. Rh5 {[%clk 0:01:24.6]} 28... Rg8 {[%clk 0:02:13]} 29. Qh3 {[%clk 0:01:16.7]}
29... Rg7 {[%clk 0:02:12.3]} 30. Qh4 {[%clk 0:00:59.9]} 30... Qe8 {[%clk
0:02:06.4]} 31. Qxb4 {[%clk 0:00:56.5]} 31... f6 {[%clk 0:01:53.5]} 32. Rh6
{[%clk 0:00:33.8]} 32... Rd1 {[%clk 0:01:45.8]} 33. Qxc3 {[%clk 0:00:31.7]}
33... Rd8 {[%clk 0:01:41.5]} 34. exf6 {[%clk 0:00:30.3]} 34... Qxe1+ {[%clk
0:01:34.3]} 35. Qxe1 {[%clk 0:00:31.2]} 35... Rf7 {[%clk 0:01:34.5]} 36. Bd5
{[%clk 0:00:27.7]} 36... Rff8 {[%clk 0:01:28.8]} 37. Qe5 {[%clk 0:00:26.3]}
37... Rxd5 {[%clk 0:01:27.3]} 38. Qxd5 {[%clk 0:00:25.8]} 38... Rxf6 {[%clk
0:01:27.2]} 39. Rxf6 {[%clk 0:00:22.5]} 39... Kg7 {[%clk 0:01:27.6]} 40. Qf7+
{[%clk 0:00:22.1]} 40... Kh8 {[%clk 0:01:26.7]} 41. Qf8# {[%clk 0:00:22.9]} 1-0

[Event "*** SCC Grand Prix: Titled Tuesday Blitz"]
[Site "Chess.com"]
[Date "2020.09.08"]
[Round "7"]
[White "ShapkinAnatoliy"]
[Black "Orest_Vovk"]
[Result "1-0"]
[WhiteElo "2665"]
[BlackElo "2489"]
[TimeControl "180+1"]
[EndTime "11:17:27 PDT"]
[Termination "ShapkinAnatoliy won on time"]

1. d4 {[%clk 0:03:00.9]} 1... Nf6 {[%clk 0:02:55]} 2. c4 {[%clk 0:03:01.1]} 2...
e6 {[%clk 0:02:48.9]} 3. g3 {[%clk 0:03:00.8]} 3... Bb4+ {[%clk 0:02:48.4]} 4.
Bd2 {[%clk 0:03:00.6]} 4... a5 {[%clk 0:02:48.1]} 5. Bg2 {[%clk 0:03:00.7]} 5...
Nc6 {[%clk 0:02:43.6]} 6. Nf3 {[%clk 0:02:57.8]} 6... d6 {[%clk 0:02:38.6]} 7.
O-O {[%clk 0:02:57.7]} 7... O-O {[%clk 0:02:33.8]} 8. Bg5 {[%clk 0:02:57]} 8...
a4 {[%clk 0:02:20.6]} 9. a3 {[%clk 0:02:56.2]} 9... Ba5 {[%clk 0:02:20.6]} 10.
Qxa4 {[%clk 0:02:55.3]} 10... Bd7 {[%clk 0:02:15.4]} 11. Qc2 {[%clk 0:02:52.9]}
11... h6 {[%clk 0:02:11.8]} 12. Bxf6 {[%clk 0:02:46.8]} 12... Qxf6 {[%clk
0:02:12.7]} 13. e3 {[%clk 0:02:47.4]} 13... e5 {[%clk 0:02:09.9]} 14. dxe5
{[%clk 0:02:45.4]} 14... dxe5 {[%clk 0:02:06.3]} 15. Nc3 {[%clk 0:02:45.4]}
15... Bxc3 {[%clk 0:01:56.8]} 16. Qxc3 {[%clk 0:02:45.3]} 16... Bg4 {[%clk
0:01:42.7]} 17. Nd2 {[%clk 0:02:35.9]} 17... Rfd8 {[%clk 0:01:41.7]} 18. b4
{[%clk 0:02:28.7]} 18... Qd6 {[%clk 0:01:24.6]} 19. Ne4 {[%clk 0:02:28.1]} 19...
Qd3 {[%clk 0:01:21.6]} 20. Qc1 {[%clk 0:02:27.3]} 20... Be2 {[%clk 0:01:07.4]}
21. Nc5 {[%clk 0:02:19.8]} 21... Qxc4 {[%clk 0:01:02.4]} 22. Qxc4 {[%clk
0:02:19.7]} 22... Bxc4 {[%clk 0:01:01.8]} 23. Rfc1 {[%clk 0:02:19.9]} 23... Bd5
{[%clk 0:00:10.3]} 24. Nxb7 {[%clk 0:02:16.6]} 24... Bxg2 {[%clk 0:00:01.9]} 25.
Nxd8 {[%clk 0:02:14.1]} 25... Nxd8 {[%clk 0:00:02.8]} 26. Kxg2 {[%clk 0:02:14]}
26... Ne6 {[%clk 0:00:03.7]} 27. a4 {[%clk 0:02:12]} 27... Kf8 {[%clk
0:00:04.6]} 28. a5 {[%clk 0:02:09.7]} 28... Ke7 {[%clk 0:00:05.5]} 29. b5 {[%clk
0:02:07.6]} 29... Kd7 {[%clk 0:00:04.6]} 30. b6 {[%clk 0:02:05.9]} 30... Rb8
{[%clk 0:00:02.1]} 31. bxc7 {[%clk 0:02:00.5]} 31... Nxc7 {[%clk 0:00:03]} 32.
a6 {[%clk 0:02:01.1]} 32... Ra8 {[%clk 0:00:02.6]} 33. a7 {[%clk 0:01:59.7]}
33... Nb5 {[%clk 0:00:03.1]} 34. Rc5 {[%clk 0:01:56.4]} 34... Nc7 {[%clk
0:00:02.5]} 35. Rxe5 {[%clk 0:01:53.8]} 35... f6 {[%clk 0:00:02.8]} 36. Rea5
{[%clk 0:01:50.8]} 36... Kc6 {[%clk 0:00:02.8]} 37. R5a2 {[%clk 0:01:49.5]}
37... Kb7 {[%clk 0:00:02.4]} 38. Rb1+ {[%clk 0:01:48.6]} 38... Kc8 {[%clk
0:00:02.2]} 39. h4 {[%clk 0:01:44.5]} 39... Kd7 {[%clk 0:00:01.1]} 40. h5 {[%clk
0:01:44.2]} 1-0

[Event "*** SCC Grand Prix: Titled Tuesday Blitz"]
[Site "Chess.com"]
[Date "2020.09.08"]
[Round "7"]
[White "Spriteball"]
[Black "Ariadna_Atreides"]
[Result "1-0"]
[WhiteElo "2280"]
[BlackElo "2069"]
[TimeControl "180+1"]
[EndTime "11:17:27 PDT"]
[Termination "Spriteball won by resignation"]

1. c4 {[%clk 0:03:00.9]} 1... Nf6 {[%clk 0:02:59]} 2. Nc3 {[%clk 0:03:00.7]}
2... e5 {[%clk 0:02:57]} 3. Nf3 {[%clk 0:02:59.3]} 3... Nc6 {[%clk 0:02:54.1]}
4. g3 {[%clk 0:02:59.4]} 4... Bb4 {[%clk 0:02:49.8]} 5. Bg2 {[%clk 0:02:57.1]}
5... Bxc3 {[%clk 0:02:42.5]} 6. bxc3 {[%clk 0:02:57.1]} 6... O-O {[%clk
0:02:41.8]} 7. O-O {[%clk 0:02:57]} 7... d6 {[%clk 0:02:41.8]} 8. d4 {[%clk
0:02:54.3]} 8... Re8 {[%clk 0:02:36.6]} 9. Qc2 {[%clk 0:02:45.4]} 9... g6 {[%clk
0:02:20.1]} 10. Bg5 {[%clk 0:02:34.6]} 10... Kg7 {[%clk 0:02:17]} 11. Qc1 {[%clk
0:02:28.3]} 11... e4 {[%clk 0:02:04.7]} 12. Nd2 {[%clk 0:02:21.2]} 12... Bf5
{[%clk 0:02:03.5]} 13. f3 {[%clk 0:02:11.3]} 13... e3 {[%clk 0:01:54.4]} 14. Ne4
{[%clk 0:02:07.9]} 14... Bxe4 {[%clk 0:01:42.9]} 15. fxe4 {[%clk 0:02:08]} 15...
Re6 {[%clk 0:01:43.4]} 16. d5 {[%clk 0:02:07.4]} 16... h6 {[%clk 0:01:39.9]} 17.
Bxf6+ {[%clk 0:02:01.8]} 17... Rxf6 {[%clk 0:01:37.5]} 18. dxc6 {[%clk
0:02:02.1]} 18... bxc6 {[%clk 0:01:35.8]} 19. Qxe3 {[%clk 0:02:01.6]} 19...
Rxf1+ {[%clk 0:01:32.6]} 20. Rxf1 {[%clk 0:02:01.3]} 20... Qe7 {[%clk
0:01:33.1]} 21. e5 {[%clk 0:01:58.6]} 21... dxe5 {[%clk 0:01:27.9]} 22. Bxc6
{[%clk 0:01:57.2]} 22... Rb8 {[%clk 0:01:26.6]} 23. Bd5 {[%clk 0:01:57.2]} 23...
f5 {[%clk 0:01:25.2]} 24. Qxa7 {[%clk 0:01:53]} 24... Rb2 {[%clk 0:01:24.6]} 25.
Qe3 {[%clk 0:01:50.7]} 25... c5 {[%clk 0:01:14.7]} 26. Ra1 {[%clk 0:01:45.4]}
26... e4 {[%clk 0:01:08.4]} 27. a4 {[%clk 0:01:41.6]} 27... Qa7 {[%clk
0:00:56.2]} 28. a5 {[%clk 0:01:40.8]} 28... g5 {[%clk 0:00:52.4]} 29. h4 {[%clk
0:01:34.8]} 29... Kg6 {[%clk 0:00:50.2]} 30. hxg5 {[%clk 0:01:30.3]} 30... hxg5
{[%clk 0:00:49.8]} 31. g4 {[%clk 0:01:30.6]} 31... fxg4 {[%clk 0:00:13.3]} 32.
Bxe4+ {[%clk 0:01:28.5]} 32... Kh6 {[%clk 0:00:11.6]} 33. Bd5 {[%clk 0:01:21.2]}
33... Qc7 {[%clk 0:00:09.6]} 34. Kg2 {[%clk 0:01:19.8]} 34... Kg7 {[%clk
0:00:07.8]} 35. Qxg5+ {[%clk 0:01:19.1]} 1-0

[Event "*** SCC Grand Prix: Titled Tuesday Blitz"]
[Site "Chess.com"]
[Date "2020.09.08"]
[Round "7"]
[White "TigrVShlyape"]
[Black "TheMagnet"]
[Result "1-0"]
[WhiteElo "2815"]
[BlackElo "2586"]
[TimeControl "180+1"]
[EndTime "11:17:29 PDT"]
[Termination "TigrVShlyape won by resignation"]

1. d4 {[%clk 0:03:00.9]} 1... Nf6 {[%clk 0:02:55.6]} 2. Nf3 {[%clk 0:03:01]}
2... g6 {[%clk 0:02:55.7]} 3. c3 {[%clk 0:03:00.2]} 3... Bg7 {[%clk 0:02:55.7]}
4. Bg5 {[%clk 0:03:00.8]} 4... O-O {[%clk 0:02:55.7]} 5. Nbd2 {[%clk 0:03:01.2]}
5... d6 {[%clk 0:02:56.3]} 6. e4 {[%clk 0:03:01.5]} 6... c5 {[%clk 0:02:56.7]}
7. dxc5 {[%clk 0:03:01.2]} 7... dxc5 {[%clk 0:02:56.6]} 8. Be2 {[%clk
0:03:01.3]} 8... Nc6 {[%clk 0:02:54.7]} 9. O-O {[%clk 0:03:00.7]} 9... Qc7
{[%clk 0:02:48.9]} 10. h3 {[%clk 0:02:53.1]} 10... h6 {[%clk 0:02:45.2]} 11. Be3
{[%clk 0:02:52.8]} 11... b6 {[%clk 0:02:43.2]} 12. Re1 {[%clk 0:02:52.4]} 12...
Bb7 {[%clk 0:02:36.7]} 13. Qc2 {[%clk 0:02:51.3]} 13... Nh5 {[%clk 0:02:27.6]}
14. Bf1 {[%clk 0:02:50.1]} 14... Nf4 {[%clk 0:02:18.4]} 15. a4 {[%clk
0:02:45.2]} 15... a6 {[%clk 0:02:14.9]} 16. Nc4 {[%clk 0:02:33.1]} 16... e5
{[%clk 0:02:09.1]} 17. Qb3 {[%clk 0:02:30.4]} 17... Na5 {[%clk 0:01:45.7]} 18.
Qxb6 {[%clk 0:02:29.1]} 18... Qxb6 {[%clk 0:01:45.5]} 19. Nxb6 {[%clk
0:02:28.8]} 19... Rad8 {[%clk 0:01:45.9]} 20. Bxc5 {[%clk 0:02:21.5]} 20... Rfe8
{[%clk 0:01:46]} 21. Ra3 {[%clk 0:02:10.6]} 21... Nd3 {[%clk 0:01:37.2]} 22.
Bxd3 {[%clk 0:02:09]} 22... Rxd3 {[%clk 0:01:38.1]} 23. b4 {[%clk 0:02:04.8]}
23... Nc6 {[%clk 0:01:37.8]} 24. b5 {[%clk 0:02:04.4]} 24... Na5 {[%clk
0:01:36.6]} 25. Bb4 {[%clk 0:02:03.2]} 25... Bf8 {[%clk 0:01:34.4]} 26. Bxf8
{[%clk 0:01:55]} 26... Kxf8 {[%clk 0:01:35.3]} 27. Raa1 {[%clk 0:01:37.4]} 27...
Nb3 {[%clk 0:01:29.8]} 28. Rad1 {[%clk 0:01:35.9]} 28... Rxd1 {[%clk 0:01:10.6]}
29. Rxd1 {[%clk 0:01:35.6]} 29... axb5 {[%clk 0:01:11]} 30. axb5 {[%clk
0:01:34.6]} 30... Bxe4 {[%clk 0:01:11.2]} 31. Nxe5 {[%clk 0:01:30.8]} 31... Kg7
{[%clk 0:01:07.3]} 32. Nec4 {[%clk 0:01:28.1]} 32... Nc5 {[%clk 0:01:02.3]} 33.
Nd6 {[%clk 0:01:24]} 33... Rb8 {[%clk 0:01:01.7]} 34. Nd7 {[%clk 0:01:19.2]}
34... Nxd7 {[%clk 0:00:59]} 35. Nxe4 {[%clk 0:01:19.5]} 35... Ne5 {[%clk
0:00:56.5]} 36. Rd5 {[%clk 0:01:17.3]} 36... Nc4 {[%clk 0:00:56.9]} 37. Rc5
{[%clk 0:01:12.6]} 37... Na3 {[%clk 0:00:52.9]} 38. c4 {[%clk 0:01:12.7]} 38...
Re8 {[%clk 0:00:50.4]} 39. f3 {[%clk 0:01:12.4]} 39... f5 {[%clk 0:00:50.1]} 40.
Rc7+ {[%clk 0:01:12.1]} 40... Kf8 {[%clk 0:00:50.6]} 41. Nf6 {[%clk 0:01:10.9]}
41... Re1+ {[%clk 0:00:47.8]} 42. Kf2 {[%clk 0:01:10.3]} 42... Rc1 {[%clk
0:00:48.5]} 43. b6 {[%clk 0:01:10]} 43... Rc2+ {[%clk 0:00:47.3]} 44. Kg3 {[%clk
0:01:08.1]} 44... Nxc4 {[%clk 0:00:42.2]} 45. b7 {[%clk 0:01:07.2]} 1-0

[Event "*** SCC Grand Prix: Titled Tuesday Blitz"]
[Site "Chess.com"]
[Date "2020.09.08"]
[Round "7"]
[White "skoularikii"]
[Black "vovachesss"]
[Result "0-1"]
[WhiteElo "2487"]
[BlackElo "2670"]
[TimeControl "180+1"]
[EndTime "11:17:31 PDT"]
[Termination "vovachesss won by resignation"]

1. e4 {[%clk 0:03:00.9]} 1... c6 {[%clk 0:02:59.6]} 2. d4 {[%clk 0:03:00.5]}
2... d5 {[%clk 0:02:59.4]} 3. e5 {[%clk 0:03:00.9]} 3... c5 {[%clk 0:02:59.3]}
4. dxc5 {[%clk 0:02:59.9]} 4... Nc6 {[%clk 0:02:58.5]} 5. Nf3 {[%clk 0:02:59.6]}
5... Bg4 {[%clk 0:02:58.2]} 6. c3 {[%clk 0:02:48.6]} 6... Bxf3 {[%clk
0:02:53.9]} 7. Qxf3 {[%clk 0:02:48]} 7... Nxe5 {[%clk 0:02:54.8]} 8. Qg3 {[%clk
0:02:44.3]} 8... Nc6 {[%clk 0:02:53.8]} 9. Bb5 {[%clk 0:02:36.6]} 9... Nf6
{[%clk 0:02:51.1]} 10. Be3 {[%clk 0:02:25.2]} 10... g6 {[%clk 0:02:39.5]} 11.
Nd2 {[%clk 0:02:24.4]} 11... Bg7 {[%clk 0:02:39.2]} 12. O-O {[%clk 0:02:23]}
12... O-O {[%clk 0:02:39.4]} 13. Rad1 {[%clk 0:02:16.3]} 13... e6 {[%clk
0:02:35.5]} 14. f4 {[%clk 0:02:04.2]} 14... Qa5 {[%clk 0:02:25.4]} 15. a4 {[%clk
0:02:03.7]} 15... a6 {[%clk 0:02:24]} 16. b4 {[%clk 0:02:03.5]} 16... Qc7 {[%clk
0:02:24]} 17. Be2 {[%clk 0:01:53.7]} 17... Rad8 {[%clk 0:02:09.6]} 18. Qf2
{[%clk 0:01:45.3]} 18... d4 {[%clk 0:01:55.6]} 19. cxd4 {[%clk 0:01:38.4]} 19...
Nxd4 {[%clk 0:01:54.4]} 20. Nc4 {[%clk 0:01:32.2]} 20... Ne4 {[%clk 0:01:46.8]}
21. Qe1 {[%clk 0:01:25.1]} 21... Nxe2+ {[%clk 0:01:40.2]} 22. Qxe2 {[%clk
0:01:25.3]} 22... Nc3 {[%clk 0:01:40.8]} 23. Qc2 {[%clk 0:01:25.1]} 23... Nxd1
{[%clk 0:01:32.5]} 24. Rxd1 {[%clk 0:01:26]} 24... Qc6 {[%clk 0:01:24.2]} 25.
Na5 {[%clk 0:01:23.2]} 25... Rxd1+ {[%clk 0:01:20.4]} 26. Qxd1 {[%clk
0:01:23.1]} 26... Qe4 {[%clk 0:01:21.3]} 27. Qe1 {[%clk 0:01:17.9]} 27... Rd8
{[%clk 0:01:11.6]} 28. Kf1 {[%clk 0:01:05.5]} 28... Qc2 {[%clk 0:01:07.9]} 29.
Qe2 {[%clk 0:01:01]} 29... Qb1+ {[%clk 0:00:48]} 30. Kf2 {[%clk 0:01:01]} 30...
Qxb4 {[%clk 0:00:47.6]} 31. Nc4 {[%clk 0:01:01.3]} 31... Bd4 {[%clk 0:00:43.8]}
32. Nd6 {[%clk 0:00:58.9]} 32... Qxc5 {[%clk 0:00:40.6]} 33. Nxb7 {[%clk
0:00:57.5]} 33... Bxe3+ {[%clk 0:00:40.8]} 34. Qxe3 {[%clk 0:00:57.1]} 34...
Rd2+ {[%clk 0:00:41.3]} 35. Kf3 {[%clk 0:00:57.2]} 35... Qd5+ {[%clk 0:00:40.9]}
36. Kg3 {[%clk 0:00:57.3]} 36... Rxg2+ {[%clk 0:00:40.3]} 37. Kh3 {[%clk
0:00:57]} 37... Qxb7 {[%clk 0:00:38.5]} 38. Qd4 {[%clk 0:00:57.1]} 38... Qf3+
{[%clk 0:00:37]} 0-1